bitfinex/quotes_ETHUSD_20260114
["timestamp","ask_amount","ask_price","bid_price","bid_amount"]
[1768362278958,3.95309936,3333.4,3333.3,0.001]
[1768362279255,4.36509936,3333.4,3333.3,0.001]
[1768362280374,4.92009936,3333.4,3333.3,0.001]
[1768362282497,4.50809936,3333.4,3333.3,0.001]
[1768362282794,0.412,3333.7,3333.3,7.62968786]
[1768362283307,0.412,3333.7,3333.4,0.01911354]
[1768362283596,8.50809529,3333.7,3333.4,0.01911354]
[1768362283748,0.412,3333.7,3333.4,0.01911354]
[1768362285087,2.99949008,3333.9,3333.4,7.6478014]
[1768362285297,0.412,3333.6,3333.4,7.6478014]
[1768362285676,0.412,3333.6,3333.4,0.01911354]
[1768362286051,0.412,3333.6,3333.3,0.001]
[1768362287681,0.967,3333.6,3333.3,0.001]
[1768362288383,3.9667771,3333.6,3333.3,0.001]
[1768362288987,0.967,3333.6,3333.3,0.001]
[1768362290358,4.52180215,3333.6,3333.3,0.001]
[1768362291090,4.34577114,3333.6,3333.3,0.001]
[1768362291394,1.522,3333.6,3333.3,0.001]
[1768362291756,0.412,3333.5,3333.3,0.001]
[1768362291955,1.11,3333.6,3333.3,0.001]
[1768362292151,0.412,3333.5,3333.3,0.001]
[1768362292886,0.967,3333.5,3333.3,0.001]
[1768362293059,0.967,3333.5,3333.3,7.62968786]
[1768362294293,0.555,3333.5,3333.3,7.62968786]
[1768362294983,0.555,3333.5,3333.3,0.001]
[1768362295382,1.11,3333.5,3333.3,0.001]
[1768362295902,1.11,3333.5,3333.3,7.62968786]
[1768362296565,1.11,3333.5,3333.3,0.001]
[1768362297178,1.11,3333.5,3333.3,7.62968786]
[1768362297379,1.11,3333.5,3333.3,0.001]
[1768362298000,1.665,3333.5,3333.3,0.001]
[1768362300360,2.22,3333.5,3333.3,0.001]
[1768362300565,10.15640316,3333.5,3333.3,0.001]
[1768362300764,2.22,3333.5,3333.3,0.001]
[1768362302797,2.775,3333.5,3333.3,0.001]
[1768362305078,3.33,3333.5,3333.3,0.001]
[1768362307605,0.585,3333.5,3333.3,0.001]
[1768362310078,1.14,3333.5,3333.3,0.001]
[1768362310403,1.14,3333.5,3333.4,8.25306495]
[1768362310605,0.412,3333.9,3333.5,8.25306495]
[1768362311002,0.105,3334.1,3333.5,8.25306495]
[1768362311210,0.517,3334.1,3333.5,8.25306495]
[1768362311393,0.517,3334.1,3333.4,1.1252065]
[1768362311597,0.105,3334.1,3333.7,8.25306495]
[1768362312477,0.66,3334.1,3333.7,8.25306495]
[1768362313501,0.66,3334.1,3333.5,10.93792715]
[1768362314020,0.66,3334.1,3333.5,19.1909921]
[1768362314225,3.917242,3334.1,3333.3,0.001]
[1768362314427,0.412,3334.0,3333.3,0.001]
[1768362314719,7.86814069,3334.0,3333.3,0.001]
[1768362314887,8.42314069,3334.0,3333.3,0.001]
[1768362315696,0.967,3334.0,3333.3,8.25406495]
[1768362316414,2.99949008,3333.9,3333.3,8.25406495]
[1768362317294,2.99949008,3333.9,3333.3,0.001]
[1768362317516,3.55449008,3333.9,3333.3,0.001]
[1768362317717,3.96649008,3333.9,3333.3,0.001]
[1768362318032,7.13717916,3333.9,3333.3,0.001]
[1768362318332,11.32732769,3333.9,3333.3,0.001]
[1768362320206,11.88232769,3333.9,3333.3,0.001]
[1768362320984,8.88283761,3333.9,3333.3,0.001]
[1768362323017,9.43783761,3333.9,3333.3,0.001]
[1768362323613,12.43732769,3333.9,3333.3,0.001]
[1768362323815,1.36523277,3333.8,3333.3,0.001]
[1768362324311,0.002,3333.6,3333.3,0.001]
[1768362324612,7.49855381,3333.5,3333.3,0.001]
[1768362325816,0.555,3333.5,3333.3,0.001]
[1768362328433,1.11,3333.5,3333.3,0.001]
[1768362330935,1.665,3333.5,3333.3,0.001]
[1768362334322,2.22,3333.5,3333.3,0.001]
[1768362337029,2.775,3333.5,3333.3,0.001]
[1768362339515,3.33,3333.5,3333.3,0.001]
[1768362342637,3.885,3333.5,3333.3,0.001]
[1768362344226,0.585,3333.5,3333.3,8.04356167]
[1768362344730,0.585,3333.5,3333.3,0.001]
[1768362345036,1.14,3333.5,3333.3,0.001]
[1768362347315,1.695,3333.5,3333.3,0.001]
[1768362349754,2.25,3333.5,3333.3,0.001]
[1768362351952,2.25,3333.5,3333.3,8.04356167]
[1768362352154,2.805,3333.5,3333.3,8.04356167]
[1768362353760,2.805,3333.5,3333.3,0.001]
[1768362355063,3.36,3333.5,3333.3,0.001]
[1768362356563,3.36,3333.5,3333.1,7.95383711]
[1768362356768,3.6962,3333.5,3333.1,7.95383711]
[1768362356955,3.36,3333.5,3332.9,8.04256167]
[1768362357463,3.36,3333.5,3332.9,11.04294777]
[1768362357673,4.327,3333.5,3332.9,18.04256167]
[1768362359081,4.327,3333.5,3333.0,0.2998]
[1768362359585,4.327,3333.5,3333.0,8.34236167]
[1768362359781,4.327,3333.5,3333.2,0.001]
[1768362360136,4.882,3333.5,3333.2,0.001]
[1768362361548,20.2551053,3333.5,3332.8,0.001]
[1768362361767,6.91627788,3333.4,3332.8,0.001]
[1768362362267,6.91627788,3333.4,3332.0,8.04256167]
[1768362362465,7.52404448,3333.2,3332.0,8.04256167]
[1768362362652,6.92235554,3333.0,3332.0,8.04256167]
[1768362362857,6.92235554,3333.0,3332.1,0.80425617]
[1768362363260,10.51841764,3332.9,3332.1,0.80425617]
[1768362363431,13.51880769,3332.9,3332.1,0.80425617]
[1768362364032,0.412,3332.8,3332.1,0.80425617]
[1768362364449,7.34031226,3332.8,3332.1,0.80425617]
[1768362364693,7.34031226,3332.8,3331.9,22.955]
[1768362364878,7.89531226,3332.8,3331.9,22.955]
[1768362365047,7.89531226,3332.8,3331.9,13.327]
[1768362365247,3.0005701,3332.7,3331.9,13.327]
[1768362365447,7.51213044,3332.6,3331.9,13.327]
[1768362365741,7.51213044,3332.6,3332.0,1.66281575]
[1768362367456,6.93415044,3332.5,3331.4,8.66569753]
[1768362367659,7.91835064,3332.4,3331.4,21.66741882]
[1768362367863,0.43118533,3332.6,3332.0,7.95389753]
[1768362368178,0.555,3332.8,3332.2,7.95389753]
[1768362368557,3.00015273,3333.2,3332.1,10.79538975]
[1768362368558,0.412,3332.9,3332.4,7.95389753]
[1768362368758,0.412,3333.0,3332.5,7.95389753]
[1768362369168,0.412,3333.0,3332.2,7.95389753]
[1768362369365,0.412,3333.0,3332.3,7.95389753]
[1768362369570,6.99772938,3333.0,3332.4,1.79538975]
[1768362369745,0.412,3333.0,3332.3,7.95389753]
[1768362369942,3.96731293,3333.0,3332.3,7.95389753]
[1768362370249,0.967,3333.0,3332.3,7.95389753]
[1768362370847,0.002,3333.6,3333.2,7.95389753]
[1768362371047,4.666506,3333.9,3333.4,7.95389753]
[1768362371248,0.412,3333.8,3333.4,7.95389753]
[1768362372090,0.412,3333.8,3333.0,3.00026444]
[1768362372247,0.967,3333.8,3333.0,7.95389753]
[1768362372442,0.967,3333.8,3333.1,7.95389753]
[1768362374684,1.522,3333.8,3333.1,7.95389753]
[1768362374886,1.522,3333.8,3333.3,7.95389753]
[1768362377287,2.077,3333.8,3333.3,7.95389753]
[1768362379495,1.665,3333.8,3333.4,7.47108752]
[1768362379708,2.22,3333.8,3333.4,7.47108752]
[1768362382196,2.775,3333.8,3333.4,7.47108752]
[1768362383491,0.002,3333.5,3333.4,7.47108752]
[1768362383664,2.777,3333.8,3333.5,7.47108752]
[1768362384601,2.777,3333.8,3333.3,17.47108752]
[1768362384799,3.332,3333.8,3333.3,9.51820727]
[1768362384999,3.332,3333.8,3333.4,7.47108752]
[1768362386103,2.96541237,3334.0,3333.4,7.47108752]
[1768362387190,3.52041237,3334.0,3333.4,7.47108752]
[1768362388535,0.967,3334.0,3333.4,7.47108752]
[1768362389302,3.96641318,3334.0,3333.1,3.00017012]
[1768362389488,12.11264159,3334.0,3333.1,30.0]
[1768362389682,7.82464898,3333.9,3333.1,7.47108752]
[1768362389882,7.82464898,3333.9,3333.1,17.47108752]
[1768362390085,7.82464898,3333.9,3333.1,10.47128743]
[1768362390286,4.52141318,3334.0,3333.2,7.47108752]
[1768362390486,1.522,3334.0,3333.2,7.47108752]
[1768362390706,1.522,3334.0,3333.2,8.81824397]
[1768362391011,1.472,3334.0,3333.2,8.81824397]
[1768362391683,1.472,3334.0,3333.3,10.47111752]
[1768362392102,2.027,3334.0,3333.4,7.47108752]
[1768362394520,2.582,3334.0,3333.4,7.47108752]
[1768362395122,4.40197864,3334.0,3333.4,7.47108752]
[1768362395622,0.002,3333.7,3333.4,7.47108752]
[1768362396730,0.557,3333.7,3333.4,7.47108752]
[1768362398705,0.557,3333.7,3333.2,10.41471623]
[1768362398906,0.557,3333.7,3333.3,7.41467392]
[1768362399308,1.112,3333.7,3333.3,7.41467392]
[1768362401994,1.667,3333.7,3333.3,7.41467392]
[1768362404413,2.222,3333.7,3333.3,7.41467392]
[1768362404952,2.222,3333.7,3333.4,0.2998]
[1768362405113,2.222,3333.7,3333.3,7.41467392]
[1768362407239,2.777,3333.7,3333.3,7.41467392]
[1768362407834,2.777,3333.7,3333.6,0.001]
[1768362409647,3.332,3333.7,3333.6,0.001]
[1768362412954,3.887,3333.7,3333.6,0.001]
[1768362415358,4.442,3333.7,3333.6,0.001]
[1768362417760,3.783,3333.7,3333.6,0.001]
[1768362418230,1.197,3333.7,3333.6,0.001]
[1768362420362,1.752,3333.7,3333.6,0.001]
[1768362421783,1.752,3333.7,3332.8,30.0]
[1768362421784,10.02344991,3333.7,3332.8,30.0]
[1768362421963,6.68872469,3333.6,3332.7,3.00055227]
[1768362422282,0.412,3333.6,3333.3,7.41467392]
[1768362422483,1.752,3333.7,3333.3,7.41467392]
[1768362422686,2.164,3333.7,3333.3,7.41467392]
[1768362422998,0.555,3333.6,3333.2,3.00009885]
[1768362423287,0.555,3333.6,3333.2,4.34159897]
[1768362423503,0.555,3333.6,3333.2,1.34150012]
[1768362423661,0.555,3333.6,3333.2,4.34158643]
[1768362424881,0.505,3333.6,3333.3,7.41467392]
[1768362425195,0.505,3333.6,3333.3,8.89032068]
[1768362425359,1.06,3333.6,3333.3,8.89032068]
[1768362425558,1.06,3333.6,3333.3,1.47564676]
[1768362426064,1.06,3333.6,3333.2,7.38677725]
[1768362426285,1.06,3333.6,3333.1,3.00017839]
[1768362427054,1.06,3333.6,3333.1,7.38677725]
[1768362428207,1.615,3333.6,3333.1,10.38692383]
[1768362430879,2.17,3333.6,3333.1,10.38692383]
[1768362431192,2.17,3333.6,3333.1,4.33887199]
[1768362431790,2.17,3333.6,3333.4,0.001]
[1768362433158,2.725,3333.6,3333.4,0.001]
[1768362435577,3.28,3333.6,3333.4,0.001]
[1768362438080,3.835,3333.6,3333.4,0.001]
[1768362439914,7.05164077,3333.4,3332.5,7.42683876]
[1768362440121,7.05164077,3333.4,3332.6,3.0006583]
[1768362440122,7.46364077,3333.4,3332.6,3.0006583]
[1768362440396,8.01864077,3333.4,3332.5,10.42754769]
[1768362440596,8.01864077,3333.4,3332.6,3.00065042]
[1768362440800,8.01864077,3333.4,3332.6,4.3434833]
[1768362442866,8.01864077,3333.4,3332.6,1.34283288]
[1768362443198,8.57364077,3333.4,3332.6,1.34283288]
[1768362443903,8.57364077,3333.4,3332.9,0.001]
[1768362444401,7.05164077,3333.3,3332.9,0.001]
[1768362445501,7.60664077,3333.3,3332.9,0.001]
[1768362447706,8.16164077,3333.3,3332.9,0.001]
[1768362449008,1.11,3333.3,3332.9,0.001]
[1768362449501,1.11,3333.3,3332.3,10.84075915]
[1768362449502,7.05164077,3333.2,3332.3,10.84075915]
[1768362449798,5.37844359,3333.3,3332.5,7.42683876]
[1768362449799,2.37835918,3333.3,3332.5,7.42683876]
[1768362450106,1.665,3333.3,3332.5,7.42683876]
[1768362451305,4.66505143,3333.3,3332.5,7.42683876]
[1768362452198,11.7166922,3333.3,3332.5,7.42683876]
[1768362452723,9.27164077,3333.3,3332.5,7.42683876]
[1768362452927,0.412,3333.2,3332.5,7.42683876]
[1768362453136,0.412,3333.2,3332.3,0.413]
[1768362453137,7.05164077,3333.1,3332.3,3.41389304]
[1768362453342,7.05164077,3333.1,3332.3,4.87761483]
[1768362453495,7.05164077,3333.1,3332.3,12.30445359]
[1768362453819,0.412,3333.2,3332.4,7.42683876]
[1768362454015,7.46364077,3333.2,3332.4,7.42683876]
[1768362454220,7.46364077,3333.2,3332.4,10.42767896]
[1768362454620,7.46364077,3333.2,3332.5,7.42683876]
[1768362455413,8.01864077,3333.2,3332.5,7.42683876]
[1768362455721,8.01864077,3333.2,3332.8,0.001]
[1768362455924,9.45350257,3333.2,3332.8,0.001]
[1768362457928,2.4018618,3333.2,3332.8,0.001]
[1768362458126,2.9568618,3333.2,3332.8,0.001]
[1768362458900,7.32603148,3333.1,3332.3,7.66542514]
[1768362459130,2.49775797,3333.1,3332.3,7.66542514]
[1768362459843,5.49799626,3333.1,3332.3,7.66542514]
[1768362460434,7.18770862,3333.0,3332.3,0.001]
[1768362460742,3.55523829,3333.1,3332.3,7.66542514]
[1768362462796,6.55547658,3333.1,3332.3,7.66542514]
[1768362463118,4.11023829,3333.1,3332.3,7.66542514]
[1768362463328,1.03684552,3333.1,3332.3,7.66542514]
[1768362463507,3.835,3333.6,3333.1,7.66442514]
[1768362465391,4.39,3333.6,3333.1,7.66442514]
[1768362465630,4.802,3333.6,3333.1,7.66442514]
[1768362467600,4.39,3333.6,3333.1,7.66442514]
[1768362467827,0.002,3333.3,3333.2,8.43086765]
[1768362468002,4.947,3333.6,3333.2,8.43086765]
[1768362469028,2.565,3333.6,3333.2,8.43086765]
[1768362469632,2.359,3333.6,3333.2,8.43086765]
[1768362470433,2.914,3333.6,3333.2,8.43086765]
[1768362473025,2.914,3333.6,3333.2,0.76644251]
[1768362473219,2.914,3333.6,3333.2,8.43086765]
[1768362473220,3.469,3333.6,3333.2,8.43086765]
[1768362473920,3.469,3333.6,3333.2,0.76644251]
[1768362474123,3.469,3333.6,3333.0,10.66468664]
[1768362475604,4.024,3333.6,3333.0,10.66468664]
[1768362476016,4.024,3333.6,3333.2,7.66442514]
[1768362478144,4.579,3333.6,3333.2,7.66442514]
[1768362479142,4.579,3333.6,3332.9,7.66442514]
[1768362479321,4.579,3333.6,3333.0,12.47235496]
[1768362479643,4.579,3333.6,3333.5,0.001]
[1768362480140,4.36704909,3333.6,3333.5,0.001]
[1768362480529,4.92204909,3333.6,3333.5,0.001]
[1768362481758,4.92204909,3333.6,3333.0,12.47232922]
[1768362481908,4.92204909,3333.6,3333.1,1.24723292]
[1768362483044,5.47704909,3333.6,3333.1,1.24723292]
[1768362483813,7.19047494,3333.5,3333.1,1.24723292]
[1768362484035,5.47704909,3333.6,3333.1,7.66442514]
[1768362484318,5.47704909,3333.6,3333.0,3.00029994]
[1768362484717,5.47704909,3333.6,3333.0,10.66472508]
[1768362486012,6.03204909,3333.6,3333.0,10.66472508]
[1768362486207,6.03204909,3333.6,3333.0,7.66442514]
[1768362486411,6.03204909,3333.6,3333.0,8.77210339]
[1768362486639,6.03204909,3333.6,3333.0,11.77237495]
[1768362487014,6.03204909,3333.6,3333.1,7.20979233]
[1768362488327,6.03204909,3333.6,3333.1,10.20998919]
[1768362488629,6.58704909,3333.6,3333.1,10.20998919]
[1768362488817,6.58704909,3333.6,3333.1,11.64179196]
[1768362490741,6.58704909,3333.6,3333.2,7.20979233]
[1768362490945,7.14204909,3333.6,3333.2,7.20979233]
[1768362491465,7.14204909,3333.6,3333.3,0.001]
[1768362493452,7.69704909,3333.6,3333.3,0.001]
[1768362495953,8.25204909,3333.6,3333.3,0.001]
[1768362496825,7.04646167,3333.5,3332.8,3.41241081]
[1768362497145,8.25204909,3333.6,3332.9,10.2101682]
[1768362497348,10.29729538,3333.6,3332.9,10.2101682]
[1768362498024,8.66404909,3333.6,3333.0,7.36712684]
[1768362498224,8.80704909,3333.6,3333.0,7.36712684]
[1768362500156,8.80704909,3333.6,3333.2,7.36712684]
[1768362500556,9.36204909,3333.6,3333.2,7.36712684]
[1768362502947,9.91704909,3333.6,3333.2,7.36712684]
[1768362503439,9.91704909,3333.6,3333.3,0.001]
[1768362504943,9.91704909,3333.6,3333.3,7.36812684]
[1768362505348,10.47204909,3333.6,3333.3,7.36812684]
[1768362506563,10.47204909,3333.6,3333.3,0.001]
[1768362507655,11.02704909,3333.6,3333.3,0.001]
[1768362510171,11.58204909,3333.6,3333.3,0.001]
[1768362512439,2.83704909,3333.6,3333.3,0.001]
[1768362515072,3.39204909,3333.6,3333.3,0.001]
[1768362515447,7.40688765,3333.5,3333.3,0.001]
[1768362515766,3.39404909,3333.6,3333.3,0.001]
[1768362517541,3.94904909,3333.6,3333.3,0.001]
[1768362520078,4.50404909,3333.6,3333.3,0.001]
[1768362522658,5.05904909,3333.6,3333.3,0.001]
[1768362525779,5.61404909,3333.6,3333.3,0.001]
[1768362528279,2.20268765,3333.6,3333.4,30.0]
[1768362528475,0.66,3334.1,3333.3,1.04554705]
[1768362528476,0.66,3334.1,3333.7,7.44427315]
[1768362529276,0.66,3334.1,3333.4,7.44427315]
[1768362529487,0.66,3334.1,3333.4,30.0]
[1768362529762,0.969,3334.4,3334.0,7.44427315]
[1768362529763,0.412,3334.4,3334.0,7.44427315]
[1768362530693,0.967,3334.4,3334.0,7.44427315]
[1768362531212,0.555,3334.4,3334.0,7.44427315]
[1768362531386,0.967,3334.4,3334.0,7.44427315]
[1768362531688,0.967,3334.4,3333.8,10.44382733]
[1768362532888,0.967,3334.4,3333.8,7.44427315]
[1768362533063,1.522,3334.4,3333.8,7.44427315]
[1768362535493,2.077,3334.4,3333.8,7.44427315]
[1768362537486,2.66587935,3334.3,3333.5,7.44427315]
[1768362537679,2.077,3334.4,3333.7,7.44427315]
[1768362537980,0.555,3334.3,3333.7,7.44427315]
[1768362539159,0.555,3334.3,3334.1,0.001]
[1768362540195,2.99832094,3335.2,3334.3,7.44427315]
[1768362540360,0.30003209,3335.1,3334.6,7.44427315]
[1768362540692,0.412,3335.1,3334.6,7.44427315]
[1768362540895,0.002,3335.3,3334.6,7.44427315]
[1768362540896,0.414,3335.3,3334.6,7.44427315]
[1768362541064,0.002,3335.3,3334.6,7.44427315]
[1768362541394,0.414,3335.3,3334.6,7.44427315]
[1768362541707,0.34121693,3335.2,3334.6,7.44427315]
[1768362542772,0.89621693,3335.2,3334.6,7.44427315]
[1768362544379,0.414,3335.3,3334.9,30.0]
[1768362544380,0.002,3335.3,3334.9,30.0]
[1768362545174,0.557,3335.3,3334.9,30.0]
[1768362545689,0.557,3335.3,3335.0,7.06231998]
[1768362545888,0.557,3335.3,3334.6,5.99769651]
[1768362545889,0.557,3335.3,3335.1,7.06231998]
[1768362546404,0.555,3335.7,3335.3,7.06231998]
[1768362547574,1.11,3335.7,3335.3,7.06231998]
[1768362548604,1.11,3335.7,3335.0,2.99847563]
[1768362548785,1.11,3335.7,3335.1,7.06231998]
[1768362548980,1.11,3335.7,3335.1,17.06231998]
[1768362549406,1.522,3335.7,3335.2,7.06231998]
[1768362550115,2.077,3335.7,3335.2,7.06231998]
[1768362550278,2.077,3335.7,3334.7,0.412]
[1768362550279,3.23515223,3335.6,3334.7,0.412]
[1768362550603,5.43024796,3335.7,3334.9,37.06231998]
[1768362550808,2.43237645,3335.7,3335.0,7.06231998]
[1768362551276,0.412,3335.6,3335.0,7.06231998]
[1768362551477,0.412,3335.5,3335.2,7.06231998]
[1768362552304,0.412,3335.5,3334.9,7.06231998]
[1768362552505,0.967,3335.5,3335.1,17.06231998]
[1768362552708,0.967,3335.5,3335.2,7.06231998]
[1768362552900,0.555,3335.5,3335.0,30.0]
[1768362553212,0.967,3335.5,3335.1,37.06231998]
[1768362553390,0.967,3335.5,3335.1,17.06231998]
[1768362553593,0.967,3335.5,3335.0,3.0581975]
[1768362553594,3.2161226,3335.4,3335.0,3.0581975]
[1768362553906,0.967,3335.5,3335.0,30.0]
[1768362554210,0.967,3335.5,3335.1,7.06231998]
[1768362554380,0.967,3335.5,3335.2,7.06231998]
[1768362554909,4.73332168,3335.5,3335.1,30.0]
[1768362555107,1.522,3335.5,3335.1,37.06231998]
[1768362555313,1.522,3335.5,3335.1,17.06231998]
[1768362555606,1.522,3335.5,3335.2,7.06231998]
[1768362556217,4.72865438,3335.5,3335.1,30.0]
[1768362556397,1.522,3335.5,3335.0,37.06231998]
[1768362556601,1.522,3335.5,3335.1,30.0]
[1768362556803,3.20185552,3335.4,3335.1,30.0]
[1768362556999,1.522,3335.5,3335.2,7.06231998]
[1768362557210,1.522,3335.5,3335.1,12.99840638]
[1768362557211,1.09398,3335.5,3335.1,12.99840638]
[1768362557387,2.06098,3335.5,3335.1,10.06072636]
[1768362557587,2.06098,3335.5,3335.1,7.06231998]
[1768362557784,0.412,3335.5,3335.2,6.90373775]
[1768362559812,0.967,3335.5,3335.2,6.90373775]
[1768362559990,0.967,3335.5,3335.1,1.30593659]
[1768362560310,0.967,3335.5,3335.1,11.30593659]
[1768362560510,0.967,3335.5,3334.4,6.90373775]
[1768362560511,3.21965756,3335.4,3334.4,6.90373775]
[1768362560716,3.21965756,3335.4,3334.9,30.0]
[1768362561012,3.21965756,3335.4,3334.9,2.99856841]
[1768362561256,4.18665756,3335.5,3334.9,2.99856841]
[1768362561414,0.967,3335.5,3334.9,9.90230616]
[1768362561717,0.967,3335.5,3335.0,6.90373775]
[1768362562087,0.555,3335.5,3335.0,6.90373775]
[1768362562417,0.412,3335.4,3335.0,6.90373775]
[1768362563116,0.412,3335.4,3335.0,9.90223318]
[1768362563316,0.412,3335.4,3335.1,6.90373775]
[1768362563543,1.11,3335.5,3335.1,6.90373775]
[1768362563711,0.412,3335.3,3335.1,6.90373775]
[1768362563916,0.412,3335.3,3335.0,6.90373775]
[1768362564605,0.412,3335.3,3334.7,2.99869058]
[1768362564606,0.412,3335.3,3334.8,6.90373775]
[1768362564808,0.967,3335.3,3335.0,6.90373775]
[1768362565025,0.967,3335.3,3334.9,2.99857852]
[1768362565325,0.967,3335.3,3335.0,6.90373775]
[1768362566433,0.967,3335.3,3335.2,6.90373775]
[1768362566732,0.967,3335.3,3334.9,6.90373775]
[1768362566936,0.967,3335.3,3334.9,16.90373775]
[1768362567529,1.522,3335.3,3334.9,16.90373775]
[1768362567732,1.522,3335.3,3335.0,6.90373775]
[1768362568127,1.11,3335.5,3335.3,6.90373775]
[1768362568432,0.412,3335.4,3335.3,6.90373775]
[1768362568601,0.412,3335.4,3335.0,6.90373775]
[1768362569404,0.412,3335.4,3335.1,9.90214859]
[1768362569627,1.11,3335.5,3335.2,6.90373775]
[1768362569836,0.412,3335.4,3335.1,2.99841084]
[1768362570129,0.412,3335.4,3335.1,4.28847312]
[1768362570321,0.412,3335.4,3335.2,6.90373775]
[1768362571729,0.412,3335.4,3335.1,4.28847312]
[1768362571912,0.412,3335.4,3335.1,8.19380003]
[1768362572413,0.967,3335.4,3335.1,8.19380003]
[1768362572612,0.967,3335.4,3335.1,1.29006228]
[1768362572831,0.967,3335.4,3335.1,6.90373775]
[1768362573226,0.967,3335.4,3335.3,6.90373775]
[1768362574637,0.775,3335.5,3335.3,6.90373775]
[1768362574938,0.775,3335.5,3335.4,6.90373775]
[1768362575805,1.187,3335.5,3335.4,6.90373775]
[1768362577940,1.742,3335.5,3335.4,6.90373775]
[1768362579039,1.33,3335.5,3335.4,6.90373775]
[1768362579244,1.742,3335.5,3335.4,6.90373775]
[1768362580046,1.742,3335.5,3335.2,0.001]
[1768362580047,1.742,3335.5,3335.2,7.28679317]
[1768362580360,2.297,3335.5,3335.2,7.28679317]
[1768362580860,0.412,3335.4,3335.2,7.28679317]
[1768362581468,0.412,3335.3,3335.2,7.28679317]
[1768362581650,0.412,3335.3,3335.2,0.001]
[1768362582457,0.412,3335.3,3335.2,7.28679317]
[1768362582668,0.967,3335.3,3335.2,7.28679317]
[1768362585463,1.522,3335.3,3335.2,7.28679317]
[1768362588540,2.077,3335.3,3335.2,7.28679317]
[1768362590059,0.297,3335.5,3335.2,10.28511411]
[1768362590251,0.412,3335.4,3335.2,10.28511411]
[1768362590866,0.412,3335.6,3335.2,5.99764188]
[1768362591067,0.412,3335.6,3335.2,7.32598538]
[1768362591504,0.412,3335.6,3335.2,4.32766444]
[1768362592390,3.66607168,3335.6,3335.2,4.32766444]
[1768362592696,0.412,3335.6,3335.2,10.28511411]
[1768362592895,0.412,3335.6,3335.3,7.28579317]
[1768362593495,0.967,3335.6,3335.3,7.28579317]
[1768362594196,0.967,3335.6,3335.2,0.001]
[1768362594892,0.555,3335.6,3335.2,7.28679317]
[1768362595109,0.967,3335.6,3335.2,7.28679317]
[1768362596267,1.522,3335.6,3335.2,7.28679317]
[1768362596796,1.522,3335.6,3335.5,0.001]
[1768362598800,4.10744736,3336.2,3335.5,7.28679317]
[1768362598801,1.06,3336.2,3335.5,7.28679317]
[1768362599027,0.412,3336.1,3335.6,8.01447249]
[1768362600498,3.22908441,3335.9,3335.2,0.001]
[1768362600700,3.22908441,3335.9,3335.2,2.99930645]
[1768362600901,3.22908441,3335.9,3335.2,0.001]
[1768362601203,3.78408441,3335.9,3335.2,0.001]
[1768362602113,3.78408441,3335.9,3334.8,2.99867839]
[1768362602114,9.68334613,3335.5,3334.8,2.99867839]
[1768362602312,9.68334613,3335.5,3334.6,7.28579317]
[1768362602313,0.412,3335.4,3334.6,7.28579317]
[1768362602643,3.61783319,3335.4,3334.6,7.28579317]
[1768362602801,3.61783319,3335.4,3334.6,10.28463428]
[1768362603124,3.61783319,3335.4,3334.7,2.9987705]
[1768362603701,4.17283319,3335.4,3334.7,2.9987705]
[1768362603903,3.19432843,3335.3,3334.2,7.28579317]
[1768362604227,3.19432843,3335.0,3334.1,3.00024126]
[1768362604426,3.19432843,3334.8,3334.1,3.00024126]
[1768362604814,1e-08,3335.4,3334.9,7.28579317]
[1768362605013,0.185,3336.3,3335.5,7.04843775]
[1768362605328,0.412,3336.2,3335.6,7.04843775]
[1768362606134,0.185,3336.3,3335.6,7.04843775]
[1768362606305,0.412,3336.2,3335.6,7.04843775]
[1768362606531,0.967,3336.2,3335.6,7.04843775]
[1768362606951,0.967,3336.2,3335.7,10.04630926]
[1768362609044,1.522,3336.2,3335.7,10.04630926]
[1768362609219,0.002,3335.9,3335.7,10.04630926]
[1768362609425,0.002,3335.9,3335.7,11.35084178]
[1768362609622,0.002,3335.9,3335.5,7.04943775]
[1768362609821,0.002,3335.9,3335.5,0.001]
[1768362610955,0.412,3335.8,3335.5,10.04748302]
[1768362611136,0.412,3335.7,3335.5,11.35504889]
[1768362611725,0.412,3335.7,3335.5,8.35700362]
[1768362611954,0.412,3335.7,3335.5,11.35504101]
[1768362612352,0.555,3335.8,3335.5,11.35504101]
[1768362612659,0.002,3335.9,3335.8,7.04843775]
[1768362612957,1.112,3336.2,3335.9,7.04843775]
[1768362613132,1.10632608,3336.2,3335.8,0.83570036]
[1768362613725,1.66132608,3336.2,3335.8,3.83347799]
[1768362613949,1.66132608,3336.2,3335.8,3.833451]
[1768362614550,1.66132608,3336.2,3335.8,7.88413811]
[1768362614854,0.412,3336.1,3335.8,7.88413811]
[1768362616575,0.967,3336.1,3335.8,0.83570036]
[1768362619146,1.522,3336.1,3335.8,0.83570036]
[1768362619556,1.11,3336.1,3335.8,7.59702894]
[1768362619760,1.11,3336.6,3336.1,6.76132858]
[1768362619958,0.412,3336.5,3336.1,6.76132858]
[1768362620445,0.412,3336.5,3335.5,0.001]
[1768362620446,3.11501487,3336.4,3335.5,0.001]
[1768362620683,3.11501487,3336.4,3335.6,9.7592386]
[1768362620983,0.412,3336.3,3335.8,6.76132858]
[1768362621301,3.52701487,3336.2,3335.9,0.001]
[1768362621519,3.52701487,3336.2,3335.5,0.001]
[1768362621668,3.1365542,3336.1,3335.5,0.001]
[1768362622586,2.99754301,3336.1,3335.5,0.001]
[1768362622903,3.12586273,3336.0,3335.5,0.001]
[1768362623066,1.00879488,3335.9,3335.5,0.001]
[1768362624100,3.11535309,3335.8,3334.9,2.99854947]